Cogmind - Beta 12 *** ADVENTURER MODE // 2023.03.29 @ 14:11:50 Player: Xero Result: Self-destructed Performance ------------- Evolutions (1) 500 Regions Visited (2) 400 Robots Destroyed (23) 115 Value Destroyed (477) 477 Prototype IDs (0) 0 Alien Tech Used (0) 0 Bonus (0) 0 TOTAL SCORE: 1492 Bonus ------- None Cogmind --------- Core Integrity 340/400 Matter 250/300 Energy 90/125 System Corruption 0% Temperature Cool (0) Movement Flying (114) Ox1 Location -9/Materials Parts ------- > --- POWER (1) -------- Light Ion Engine > --- PROPULSION (3) --- Flight Unit Flight Unit Flight Unit > --- UTILITY (3) ------ Medium Storage Unit Signal Interpreter Seismic Detector > --- WEAPON (2) ------- (None) > --- INVENTORY (10) --- Wheel Improved Heat Sink Small Battery (100) Visual Processing Unit Signal Interpreter Targeting Computer ECM Suite Light EM Pulse Cannon Light EM Pulse Cannon Light EM Pulse Cannon Peak State ------------ > --- POWER ------------ (None) > --- PROPULSION ------- Flight Unit Flight Unit Flight Unit > --- UTILITY ---------- Medium Storage Unit Signal Interpreter Seismic Detector > --- WEAPON ----------- Light EM Pulse Cannon Light EM Pulse Cannon > --- INVENTORY -------- Light Ion Engine Light Treads Wheel Improved Heat Sink Small Battery Visual Processing Unit Signal Interpreter Terrain Scan Processor Targeting Computer ECM Suite [Rating: 11] Favorites ----------- Power Light Ion Engine Engine Light Ion Engine Propulsion Light Treads Treads Light Treads Wheel Wheel Flight Unit Flight Unit Utility Medium Storage Unit Device Improved Terrain Scanner Storage Medium Storage Unit Processor Signal Interpreter Weapon EM Pulse Gun Energy Gun EM Pulse Gun Energy Cannon Light EM Pulse Cannon Ballistic Cannon Light Cannon Build | -11 -10 -9 ------- Run | Jun Mat Mat Slots Evolved 2 | . . 2 Power . | . . . Propulsion 1 | . . 1 Utility 1 | . . 1 Weapon . | . . . Parts Attached 33 | 8 10 15 Power 4 | 1 2 1 Engine 4 | 1 2 1 Core . | . . . Reactor . | . . . Propulsion 16 | 3 4 9 Treads 4 | 1 2 1 Leg . | . . . Wheel 8 | 2 2 4 Hover . | . . . Flight 4 | . . 4 Utility 7 | 3 2 2 Device 4 | 2 . 2 Storage 2 | 1 1 . Processor 1 | . 1 . Hackware . | . . . Protection . | . . . Artifact . | . . . Weapon 6 | 1 2 3 Energy Gun 2 | 1 . 1 Energy Cannon 2 | . . 2 Ballistic Gun . | . . . Ballistic Cannon 2 | . 2 . Launcher . | . . . Special Weapon . | . . . Impact Weapon . | . . . Slashing Weapon . | . . . Piercing Weapon . | . . . Special Melee Weapon . | . . . Unidentified Prototypes . | . . . Parts Lost 5 | . 1 4 Power 1 | . . 1 Propulsion 3 | . 1 2 Utility . | . . . Weapon 1 | . . 1 Highest Loss Streak 2 | . 1 2 To Critical Strikes . | . . . Average Slot Usage (%) 87 | . 90 81 Engine 12 | . 14 8 Treads 11 | . 13 5 Wheel 14 | . 13 19 Flight 1 | . . 4 Device 9 | . 8 11 Storage 13 | . 14 11 Processor 6 | . 5 11 Energy Gun 12 | . 14 9 Ballistic Cannon 4 | . 6 . Naked Turns . | . . . Heaviest Build 19 | 11 19 19 Greatest Support 30 | 26 20 30 Greatest Overweight (x) 5 | . 5 3 Average Overweight (x) . | . . . Largest Inventory Capacity 10 | 8 10 10 Average Capacity 8 | 7 8 10 Most Carried 10 | 4 10 10 Average Carried 6 | 2 7 8 Final Capacity 10 | 8 10 10 Final Carried 10 | 4 10 10 Class Distribution -------------------- 77% | Mutant 22% | Scavenger-Mutant Dominant Class ---------------- Mutant | -10/Materials Scavenger-Mutant | -9/Materials Resources | -11 -10 -9 ----------- Run | Jun Mat Mat Matter Collected 510 | 280 135 95 Remotely . | . . . Salvage Created 811 | 216 339 256 Parts 48 | 14 17 17 Haulers Intercepted 1 | . . 1 Recyclers Shooed 2 | . . 2 Parts Field Recycled . | . . . Retrieved Matter . | . . . Parts Self-Destructed . | . . . Prevented . | . . . Kills | -11 -10 -9 ------- Run | Jun Mat Mat Combat Hostiles Destroyed 12 | . 6 6 Guns 9 | . 3 6 Cannons 1 | . 1 . AOE 2 | . 2 . Classes Destroyed 9 | 2 3 4 Worker 1 | . 1 . Builder 1 | . . 1 Tunneler 5 | 5 . . Hauler 1 | . . 1 Recycler 1 | 1 . . Watcher 2 | . 2 . Swarmer 3 | . . 3 Grunt 8 | . 6 2 Sentry 1 | . . 1 Best Kill Streak 4 | 4 4 3 Combat Bots Only 3 | . 3 3 Max Kills in Single Turn 2 | 1 2 1 Gunslinging . | . . . Exploded 2 | . 2 . Melee . | . . . Uniques/NPCs Destroyed . | . . . Combat | -11 -10 -9 -------- Run | Jun Mat Mat Damage Taken 640 | . 336 304 Core 205 | . 145 60 Absorbed by Shields . | . . . Core Remaining (%) 71 | 100 42 . Volleys Fired 88 | 13 28 47 Largest 2 | 1 2 1 Hottest 75 | 40 75 40 Shots Fired 98 | 13 38 47 Gun 88 | 13 28 47 Cannon 10 | . 10 . Launcher . | . . . Special . | . . . Kinetic 10 | . 10 . Thermal 41 | . . 41 Explosive . | . . . Electromagnetic 47 | 13 28 6 Robot Hit Streak 20 | 6 20 12 Robot Miss Streak 2 | 1 2 1 Penetration Max . | . . . Secondary Targets . | . . . Shots Hit Robots 83 | 12 32 39 Core Hits 34 | 7 15 12 Critical Kills . | . . . Critical Parts Destroyed . | . . . Critical Strikes 2 | . 2 . Corrupt 2 | . 2 . Melee Attacks . | . . . Impact . | . . . Slashing . | . . . Piercing . | . . . Sneak Attacks . | . . . Combat Hostiles . | . . . Follow-up Attacks . | . . . Damage Inflicted 1252 | 182 624 446 Guns 935 | 161 330 444 Cannons 141 | . 141 . Explosions 174 | 21 153 . Melee . | . . . Ramming 2 | . . 2 Kinetic 141 | . 141 . Thermal 554 | 21 153 380 Explosive . | . . . Electromagnetic 555 | 161 330 64 Impact . | . . . Slashing . | . . . Piercing . | . . . Highest Corruption . | . . . Average Corruption . | . . . Corruption Purged . | . . . Corruption Blocked . | . . . Overload Shots . | . . . Overflow Damage 2 | . 2 . Projectiles . | . . . Explosions 2 | . 2 . Melee . | . . . Knockbacks 2 | . 2 . Impact . | . . . Kinetic 2 | . 2 . Secondary . | . . . Self-Inflicted Damage 75 | . 74 1 Shots 2 | . 2 . Rammed 1 | . . 1 Targets Rammed 1 | . . 1 Kicked . | . . . Crushed . | . . . Highest Temperature 117 | . 117 23 Average Temperature 32 | . 40 7 Received Heat Transfer 360 | . 237 123 Siege Activations . | . . . Robots Corrupted . | . . . Combat Hostiles . | . . . Parts Fried 2 | . 2 . Impact Corruptions . | . . . Robots Melted . | . . . Combat Hostiles . | . . . Parts Melted 1 | . . 1 Heat Transferred 1125 | 50 200 875 Parts Sabotaged . | . . . Parts Stolen . | . . . Parts Stripped . | . . . Power Chain Reactions 3 | 1 2 . Missiles Intercepted . | . . . Alert | -11 -10 -9 ------- Run | Jun Mat Mat Peak Influence 304 | 30 304 196 Initial 39 | . 16 39 Average 109 | 15 140 98 Maximum Alert Level 1 | . 1 . Low Security (%) 87 | 100 78 100 Level 1 12 | . 21 . Level 2 . | . . . Level 3 . | . . . Level 4 . | . . . Level 5 . | . . . High Security . | . . . Max Security . | . . . Squads Dispatched . | . . . Investigation . | . . . Extermination . | . . . Reinforcement . | . . . Assault . | . . . Garrison . | . . . Intercept . | . . . Searches Triggered . | . . . Construction Impeded . | . . . Haulers Reinforced . | . . . Active Scanning Responses . | . . . Cargo Convoy Interrupts . | . . . Stealth | -11 -10 -9 --------- Run | Jun Mat Mat Distress Signals 2 | . 1 1 Communications Jammed . | . . . Distress Signals . | . . . Times Spotted 24 | . 14 10 Peak Tracking Total 4 | . 4 4 Tactical Retreats 7 | . 5 2 Traps | -11 -10 -9 ------- Run | Jun Mat Mat Traps Triggered 2 | . 2 . Indirectly . | . . . Trap Hack Attempts . | . . . Triggered . | . . . Disarmed . | . . . Reprogrammed . | . . . Reused . | . . . Traps Extracted . | . . . Installed . | . . . Triggered . | . . . Machines | -11 -10 -9 ---------- Run | Jun Mat Mat Machines Disabled 1 | . 1 . Max in Single Turn 1 | . 1 . Machines Repaired . | . . . Machines Sabotaged . | . . . Overloaded Fab Kills . | . . . Hacking | -11 -10 -9 --------- Run | Jun Mat Mat Machines Accessed 1 | . . 1 Terminals . | . . . Fabricators . | . . . Repair Stations . | . . . Recycling Units . | . . . Scanalyzers 1 | . . 1 Garrison Access . | . . . Total Hacks 2 | . . 2 Successful 2 | . . 2 Failed . | . . . Catastrophic . | . . . Database Lockouts . | . . . Manual . | . . . Terminals . | . . . Fabricators . | . . . Repair Stations . | . . . Recycling Units . | . . . Scanalyzers 2 | . . 2 Garrison Access . | . . . Terminal Hacks . | . . . Fabricator Hacks . | . . . Repair Station Hacks . | . . . Recycling Unit Hacks . | . . . Scanalyzer 2 | . . 2 Insert Component 1 | . . 1 Analyze 1 | . . 1 Garrison Access Hacks . | . . . Unauthorized Hacks . | . . . Terminals . | . . . Fabricators . | . . . Repair Stations . | . . . Recycling Units . | . . . Scanalyzers . | . . . Garrison Access . | . . . Data Cores Recovered . | . . . Used . | . . . Hacking Detections 1 | . . 1 Full Trace Events . | . . . Feedback Events . | . . . Feedback Blocked . | . . . Robot Schematics Acquired . | . . . Robots Built . | . . . Authchips . | . . . Time . | . . . Total Robot Build Rating . | . . . Part Schematics Acquired 1 | . . 1 Parts Built . | . . . Authchips . | . . . Time . | . . . Total Part Build Rating . | . . . Parts Repaired . | . . . Time . | . . . Parts Recycled . | . . . Recycled Matter . | . . . Retrieved Matter . | . . . Retrieved Components . | . . . Parts Scanalyzed 1 | . . 1 Part Schematics Acquired 1 | . . 1 Parts Damaged . | . . . Bothacking | -11 -10 -9 ------------ Run | Jun Mat Mat Used RIF Installer . | . . . Robots Hacked . | . . . Non-combat . | . . . Combat . | . . . Robot Hacks Applied . | . . . Relay Couplers Released . | . . . Fabnet Peak Effective % . | . . . Robots Rewired . | . . . Allies Hacked . | . . . Hacks Repelled . | . . . Allies | -11 -10 -9 -------- Run | Jun Mat Mat Total Allies . | . . . Largest Group . | . . . Highest-Rated Group . | . . . Highest-Rated Ally . | . . . Total Orders . | . . . Ally Attacks . | . . . Total Damage . | . . . Kills . | . . . Allies Corrupted . | . . . Allies Melted . | . . . Intel | -11 -10 -9 ------- Run | Jun Mat Mat Robot Analysis Total . | . . . Derelict Logs Recovered . | . . . Drone Launches . | . . . Drone Recoveries . | . . . Exploration | -11 -10 -9 ------------- Run | Jun Mat Mat Turns Passed 1220 | 192 713 315 Spaces Moved 705 | 150 401 154 Core 12 | 5 6 1 Treads 282 | . 256 26 Legs . | . . . Wheels 387 | 145 139 103 Hover . | . . . Flight 24 | . . 24 Fastest Speed 34 | 50 95 34 Average Speed 121 | 98 140 93 Slowest Speed 300 | 100 300 200 Overloaded Moves . | . . . Propulsion Burnouts . | . . . Robots Hopped . | . . . Cave-ins Triggered . | . . . Exploration Rate (%) 29 | 7 60 20 Regions Visited 2 Branch Regions . Pre-discovered Areas . | . . . Known Exits Taken 1 | . 1 . Unknown Exits Taken 1 | 1 . . Scrap Searched . | . . . Spaces Dug . | . . . Terrain Destroyed 5 | . 5 . Melee . | . . . Projectile . | . . . AOE 5 | . 5 . Terrain Rammed . | . . . Walls Destroyed . | . . . Machines Disabled . | . . . Actions | -11 -10 -9 --------- Run | Jun Mat Mat Total 966 | 180 509 277 Wait 105 | . 61 44 Move 703 | 149 400 154 Hop . | . . . Pick Up 20 | 7 8 5 Fast Attach 20 | 5 7 8 Attach 8 | 3 1 4 Detach 4 | 1 . 3 Swap 5 | . 2 3 Drop 12 | 2 2 8 Fire 88 | 13 28 47 Melee . | . . . Ram 1 | . . 1 Kick . | . . . Crush . | . . . Escape Stasis . | . . . Rewire . | . . . Trap . | . . . Miscellaneous . | . . . Route ------- -11/Junkyard -10/Materials (discovered 2 exits: *Mat / *Min) -9/Materials (discovered 1 exit: *Sto) History --------- Turn | Location | Event 10 | -11/Junkyard | Discovered new exit (range 16) 193 | -11/Junkyard | Entered Materials 313 | -10/Materials | Build established: Mutant 494 | -10/Materials | Core integrity fell below 50% 626 | -10/Materials | Discovered new exit (range 11) 674 | -10/Materials | Identified exit to Mines 813 | -10/Materials | Discovered new exit (range 9) 882 | -10/Materials | Identified exit to Materials 906 | -10/Materials | Entered another Materials area 906 | -9/Materials | Evolved 2 slots: Propulsion x1, Utility x1 1073 | -9/Materials | Discovered new exit (range 7) 1079 | -9/Materials | Identified exit to Storage 1221 | -9/Materials | Self-destructed Last Messages --------------- 01173_ Acquired 10 matter. 01177_ Acquired Flight Unit. 01180_ R-06 Scavenger collects Wheel. 01181_ Acquired Flight Unit. 01182_ Acquired 16 matter. 01183_ Acquired 4 matter. 01185_ G-34 Mercenary destroyed. 01188_ Dropped Sml. Laser. 01189_ Acquired Lgt. EM Pulse Cannon. 01199_ R-06 Scavenger inserts Prototype Engine into recycling unit. 01200_ Dropped Lgt. Treads. 01201_ Dropped Terrain Scan Processor. 01202_ R-06 Scavenger inserts Med. Storage Unit into recycling unit. 01203_ Acquired Lgt. EM Pulse Cannon. 01205_ R-06 Scavenger inserts Wheel into recycling unit. 01206_ Recycling unit begins recycling process. 01208_ R-06 Scavenger inserts Lgt. Treads into recycling unit. 01212_ K-01 Serf collects debris. 01219_ R-06 Scavenger collects Sml. Laser. 01220_ K-01 Serf collects debris. Map ----- +----------------------------------------------------+ | ?????????????????????????????????????????????????? | | ?????????????????????????????????????????????????? | | ?????????????????????????????????????????????????? | | ?????????????????????????????????????????????????? | | ?????????????????????????????????????????????????? | | ?????????????????????????????????????????????????? | | ?????????????????????????????????????????????????? | | ?????????????????????????????????????????????????? | | ?????????????????????????????????????????????????? | | ?????????????????????????????????????????????????? | | ?????????????????????????????????????????????????? | | ?????????????????????????????????????????????????? | | ?????????????????????????????????????????????????? | | ?????????????????###?????????????????????????????? | | ?????????????????? [#####????????????????????????? | | ??????????????????? ?????????? ???????????? | | ??????????????????? ????????? ???????????? | | ???????????????????? #??????? #????????????? | | ????????????????????# #??##### #????????????? | | ????????????????????# #?? #????????????? | | ??????? ??????????### #?? ??????????????? | | ??????# ??? # ?? # #?? ????????????????? | | ??????+ ????+ ?"" # ### #?????????????????? | | ??????? ???# """ # #?????????????????? | | ???????# ???# """ # #?????????????????? | | ???????# ??#! + ==@ #?????????????????? | | ???????# ??# """ # === ##????????????????? | | ???????# ?#! """ # ==! #????????????????? | | ???????# ?# """ # #????????????????? | | ???????# # = % # [%kr #????????????????? | | ???????# #####+## * ]]] #????????????????? | | ???????# % a ]] #????????????????? | | ???????# ^ ]] #????????????????? | | ???????# #????????????????? | | ???????# #????????????????? | | ???????# ######### ^ | #????????????????? | | ?????????????????#%## #????????????????? | | ?????????????????# ## #????????????????? | | ??????????########+## "Y" #????????????????? | | ??????????# ! % ## ! """ #????????????????? | | ??????????# ** ## #### ###????????????????? | | ??????????# * ####+##???+#??????????????????? | | ??????????# #???? ????????????????????????? | | ??????????# > #?????????????????????????????? | | ??????????# #?????????????????????????????? | | ??????????# #?????????????????????????????? | | ??????????# #?????????????????????????????? | | ??????????# #?????????????????????????????? | | ??????????####+#####?????????????????????????????? | | ???????????# ######??????????????????????????? | +----------------------------------------------------+ Best States ------------- Heat Dissipation 28 Energy Generation 10 Energy Capacity 125 Matter Stores 300 Matter Capacity 300 Sight Range 16 Terrain Scan Range 16 Terrain Scan Density 10 Resistance: KI 20 Resistance: TH 20 Resistance: EX 20 Resistance: EM 20 Resistance: I 20 Resistance: S 20 Resistance: P 20 Evasion (%) 50 Recoil Reduction 1 Offensive Hacking 10 Item Schematics ----------------- Seismic Detector | -9/Materials | Scanalyzed Robot Schematics ------------------ None Fabricated ------------ Nothing Alien Tech Used ----------------- None Achievements -------------- None Challenges ------------ None Game ------ Seed HackingMakeshiftPick Manual? 0 Play Time 00:21:06 Cumulative 7.8 hours Start 2023.03.29 @ 13:50:59 End 2023.03.29 @ 14:11:50 Sessions 1 Manual Loads 0 Difficulty Adventurer Special Mode None Game No. 5 Rogue 0 Adventurer 5 Explorer 0 Win Type - Total 0 Types 0/0/0/0/0/0/0/0/0 Lore% 10 Gallery% 13 Achievement% 12 Wizard Run 0 Options --------- ASCII 0 Keyboard 0 Movement Mouse Keybinds 0 Fullscreen 1 Font 18/Terminus Map View 76x50 Tactical HUD 1 Map Filters NONE Filters NONE Steam 1 RUN: d466655a-a560-417c-abd1-c15284ae3c73